bitfinex-derivatives/quotes_SOLF0:USTF0_20220110
["timestamp","ask_amount","ask_price","bid_price","bid_amount"]
[1641819337187,7.37272828,135.62,135.58,9.341]
[1641819337788,7.37272828,135.62,135.56,1.843]
[1641819337990,15.07472828,135.62,135.53,25.17449446]
[1641819338190,7.37626319,135.56,135.53,25.17449446]
[1641819338391,7.614,135.56,135.53,25.17449446]
[1641819338591,14.98999115,135.56,135.53,25.17449446]
[1641819338790,7.614,135.56,135.51,15.26027933]
[1641819339392,7.37517516,135.58,135.51,15.26027933]
[1641819339590,7.37517516,135.58,135.53,15.26027933]
[1641819339793,4.0,135.69,135.53,15.26027933]
[1641819339991,7.37300007,135.62,135.55,4.0]
[1641819340392,7.37300007,135.62,135.53,32.60375964]
[1641819340592,7.37300007,135.62,135.55,15.26027933]
[1641819341394,7.37300007,135.62,135.56,19.42956651]
[1641819341794,7.37300007,135.62,135.57,4.16928718]
[1641819344895,4.0,135.58,135.48,34.4752222]
[1641819345096,14.37525691,135.58,135.48,34.4752222]
[1641819345494,4.0,135.56,135.48,34.4752222]
[1641819345695,4.0,135.56,135.44,102.63025398]
[1641819345896,18.37525691,135.58,135.47,35.25981188]
[1641819346096,18.37525691,135.58,135.43,4.0]
[1641819346495,8.17181626,135.57,135.48,3.87793202]
[1641819346895,4.0,135.55,135.44,3.87793202]
[1641819347098,12.393,135.55,135.44,3.87793202]
[1641819347496,4.0,135.46,135.44,3.87793202]
[1641819347696,7.38416097,135.45,135.44,3.87793202]
[1641819347897,7.38416097,135.45,135.42,28.86231051]
[1641819348297,7.007,135.46,135.42,28.86231051]
[1641819348496,7.37871241,135.51,135.43,3.87793202]
[1641819348696,7.37925691,135.5,135.43,3.87793202]
[1641819349097,7.38089087,135.47,135.43,3.87793202]
[1641819349297,14.43689087,135.47,135.37,3.87793202]
[1641819350399,14.43689087,135.47,135.35,5.72393202]
[1641819350598,7.37898465,135.51,135.35,13.10291667]
[1641819350799,7.37680732,135.55,135.47,4.0]
[1641819350998,7.37680732,135.55,135.44,5.844]
[1641819351199,7.37680732,135.55,135.48,3.87793202]
[1641819351698,4.0,135.55,135.49,3.87793202]
[1641819351898,7.37952919,135.5,135.49,3.87793202]
[1641819352300,7.37952919,135.5,135.42,100.40607849]
[1641819352599,33.50940612,135.56,135.42,26.82937849]
[1641819352799,7.378168,135.52,135.43,9.91421513]
[1641819353199,7.378168,135.52,135.43,11.75921513]
[1641819353401,4.17245407,135.55,135.44,4.0]
[1641819353599,7.37571913,135.57,135.45,1.845]
[1641819353799,7.37571913,135.57,135.46,4.0]
[1641819353999,7.37571913,135.57,135.45,7.75117389]
[1641819354000,7.37571913,135.57,135.47,5.844]
[1641819354499,4.0,135.66,135.49,4.0]
[1641819354700,4.0,135.65,135.5,1.843]
[1641819354899,4.0,135.67,135.51,137.8823]
[1641819355104,4.17032434,135.65,135.52,1.843]
[1641819355502,7.37300007,135.63,135.52,14.20549358]
[1641819355901,4.17032434,135.62,135.53,5.90274177]
[1641819356102,4.17032434,135.62,135.54,1.843]
[1641819356302,4.17032434,135.62,135.53,7.74574177]
[1641819356603,61.9103779,135.82,135.61,4.0]
[1641819356803,7.36783938,135.72,135.59,1.842]
[1641819357004,7.36783938,135.72,135.62,4.0]
[1641819357206,7.36783938,135.72,135.63,1.842]
[1641819357403,4.16803696,135.71,135.63,1.842]
[1641819358603,4.16803696,135.71,135.6,8.29027845]
[1641819358805,11.53669071,135.71,135.64,2.44827845]
[1641819359204,4.16803696,135.7,135.64,2.44827845]
[1641819359605,4.16803696,135.7,135.6,2.44827845]
[1641819360211,7.37028302,135.68,135.6,2.44827845]
[1641819360607,4.16803696,135.67,135.58,6.44827845]
[1641819360808,4.16803696,135.67,135.6,4.0]
[1641819361009,7.36865375,135.71,135.61,1.843]
[1641819361207,7.36865375,135.71,135.59,1.842]
[1641819361410,4.0,135.7,135.61,2.44827845]
[1641819361611,4.16870569,135.7,135.61,2.44827845]
[1641819362011,4.0,135.67,135.61,2.44827845]
[1641819362211,7.37218475,135.64,135.61,2.44827845]
[1641819362411,15.05718475,135.64,135.58,2.44827845]
[1641819362612,4.16870569,135.63,135.58,2.44827845]
[1641819363610,7.37191301,135.65,135.54,1.843]
[1641819364613,7.37300007,135.63,135.55,2.44827845]
[1641819365013,11.37300007,135.63,135.55,2.44827845]
[1641819365213,4.0,135.62,135.55,2.44827845]
[1641819365414,4.0,135.61,135.55,2.44827845]
[1641819365614,7.37599115,135.57,135.55,2.44827845]
[1641819365813,11.378168,135.56,135.55,2.44827845]
[1641819366216,11.378168,135.56,135.52,12.36249358]
[1641819366414,7.37952919,135.53,135.52,12.36249358]
[1641819366615,9.854,135.53,135.52,12.36249358]
[1641819366815,17.23489087,135.53,135.52,5.13449358]
[1641819367015,21.40782876,135.53,135.49,41.24819334]
[1641819367218,21.40782876,135.53,135.42,70.5779]
[1641819367416,4.0,135.52,135.4,41.24819334]
[1641819367616,13.23489087,135.53,135.4,41.24819334]
[1641819367816,17.23489087,135.53,135.4,41.24819334]
[1641819368516,17.23489087,135.53,135.4,43.09319334]
[1641819368717,13.23489087,135.53,135.4,43.09319334]
[1641819368916,17.23489087,135.53,135.4,43.09319334]
[1641819369519,4.0,135.52,135.4,43.09319334]
[1641819369718,4.0,135.52,135.4,41.24819334]
[1641819370318,17.23489087,135.53,135.4,41.24819334]
[1641819370519,13.23489087,135.53,135.4,45.24819334]
[1641819370721,4.0,135.59,135.4,41.24819334]
[1641819370921,7.37653524,135.56,135.42,4.0]
[1641819371119,7.37762367,135.54,135.43,1.845]
[1641819371619,7.37762367,135.54,135.44,41.24819334]
[1641819371821,7.37626319,135.57,135.45,5.845]
[1641819372120,7.37463127,135.6,135.47,27.37327189]
[1641819372319,7.37463127,135.6,135.5,4.0]
[1641819372518,7.37463127,135.6,135.51,1.844]
[1641819373319,7.37463127,135.6,135.49,5.844]
[1641819373721,7.37463127,135.6,135.5,4.0]
[1641819374525,7.37463127,135.6,135.54,4.0]
[1641819374726,7.37463127,135.6,135.57,4.0]
[1641819374926,7.37218475,135.64,135.57,9.184]
[1641819376327,7.37218475,135.64,135.54,19.44466953]
[1641819376730,4.0,135.71,135.54,35.44466953]
[1641819376930,7.37055463,135.67,135.61,4.0]
[1641819377330,7.37055463,135.67,135.6,1.843]
[1641819377531,7.37055463,135.67,135.59,5.843]
[1641819377932,7.37055463,135.67,135.59,1.843]
[1641819378533,4.0,135.67,135.59,1.843]
[1641819378734,7.3716413,135.65,135.58,15.44466953]
[1641819378931,15.4846413,135.65,135.58,15.44466953]
[1641819379333,15.4846413,135.65,135.55,15.44466953]
[1641819379533,15.4846413,135.65,135.55,17.28766953]
[1641819379733,15.4846413,135.65,135.55,15.44466953]
[1641819380036,7.37463127,135.6,135.55,15.44466953]
[1641819380237,15.29063127,135.6,135.55,15.44466953]
[1641819380634,7.916,135.6,135.55,15.44466953]
[1641819381238,7.916,135.6,135.52,15.44466953]
[1641819381439,7.37381558,135.61,135.52,15.44466953]
[1641819382135,7.37381558,135.61,135.53,15.44466953]
[1641819382635,7.37381558,135.61,135.54,3.4570077]
[1641819383436,7.37381558,135.61,135.53,3.4570077]
[1641819383637,7.37272828,135.63,135.59,4.0]
[1641819383842,7.37272828,135.63,135.59,8.975]
[1641819384041,126.7762735,135.86,135.54,5.843]
[1641819384042,7.3724565,135.64,135.56,7.579]
[1641819384242,7.37571913,135.58,135.54,1.843]
[1641819384442,14.58971913,135.58,135.57,3.4570077]
[1641819384842,7.214,135.58,135.54,3.4570077]
[1641819385043,14.59053524,135.58,135.54,3.4570077]
[1641819385242,18.76214403,135.58,135.57,3.4570077]
[1641819385742,18.76214403,135.58,135.52,3.4570077]
[1641819386145,14.59053524,135.58,135.52,3.4570077]
[1641819386345,7.37735153,135.55,135.52,3.4570077]
[1641819386542,14.68535153,135.55,135.5,3.4570077]
[1641819386943,7.37898465,135.52,135.5,3.4570077]
[1641819387144,16.55598465,135.52,135.5,3.4570077]
[1641819387642,20.55598465,135.52,135.5,3.4570077]
[1641819387842,16.55598465,135.52,135.5,3.4570077]
[1641819388042,16.55598465,135.52,135.48,15.44466953]
[1641819388242,9.177,135.52,135.44,15.44466953]
[1641819388442,4.0,135.59,135.44,15.44466953]
[1641819388645,7.378168,135.53,135.44,17.28866953]
[1641819388843,7.37680732,135.56,135.45,72.1533]
[1641819389243,7.37680732,135.56,135.47,15.44466953]
[1641819389646,7.37680732,135.56,135.51,4.0]
[1641819389844,7.37599115,135.57,135.51,5.66]
[1641819390447,4.0,135.54,135.52,2.42155239]
[1641819390752,7.37599115,135.57,135.52,2.42155239]
[1641819391346,7.37599115,135.57,135.5,6.42155239]
[1641819391549,4.0,135.65,135.52,4.0]
[1641819391747,7.37381558,135.61,135.52,12.021]
[1641819391947,7.37381558,135.61,135.53,4.0]
[1641819392147,7.37381558,135.61,135.51,2.42155239]
[1641819392347,7.37381558,135.61,135.53,2.42155239]
[1641819392549,7.37381558,135.61,135.53,17.86622192]
[1641819392849,7.37463127,135.6,135.53,15.44466953]
[1641819393247,4.17139219,135.59,135.54,2.42155239]
[1641819393748,7.37463127,135.6,135.54,2.42155239]
[1641819394150,7.37463127,135.6,135.52,17.86622192]
[1641819394349,4.0,135.58,135.52,17.86622192]
[1641819394549,4.0,135.58,135.55,2.42155239]
[1641819394949,4.0,135.58,135.53,2.42155239]
[1641819395249,7.37626319,135.57,135.53,2.42155239]
[1641819395448,11.54835287,135.57,135.53,2.42155239]
[1641819395750,7.37626319,135.57,135.53,2.42155239]
[1641819395949,7.37626319,135.57,135.5,2.42155239]
[1641819396151,7.3749032,135.59,135.5,2.42155239]
[1641819396654,7.3749032,135.59,135.5,17.86622192]
[1641819397251,4.17162239,135.58,135.51,2.42155239]
[1641819397451,11.54734152,135.58,135.51,2.42155239]
[1641819397652,4.0,135.63,135.51,2.42155239]
[1641819397853,7.37435935,135.6,135.53,4.0]
[1641819398053,7.37435935,135.6,135.51,11.70855239]
[1641819398453,7.37435935,135.6,135.52,2.42155239]
[1641819399155,7.37626319,135.57,135.52,2.42155239]
[1641819399353,19.86526319,135.57,135.52,2.42155239]
[1641819399653,15.86526319,135.57,135.52,2.42155239]
[1641819399853,4.17178923,135.56,135.52,2.42155239]
[1641819400752,4.17178923,135.56,135.51,2.42155239]
[1641819401755,7.37463127,135.6,135.49,12.32595671]
[1641819401956,7.37463127,135.6,135.5,5.844]
[1641819402354,7.37463127,135.6,135.5,8.26555239]
[1641819402555,7.37463127,135.6,135.5,4.26555239]
[1641819402755,7.37463127,135.6,135.51,2.42155239]
[1641819403157,7.37463127,135.6,135.52,15.44466953]
[1641819403354,7.37463127,135.6,135.52,23.58566953]
[1641819403757,4.1713359,135.59,135.53,2.42155239]
[1641819404156,7.37354373,135.62,135.53,2.42155239]
[1641819404358,22.81495255,135.68,135.59,4.0]
[1641819404557,15.44466953,135.68,135.59,6.282]
[1641819404958,15.44466953,135.68,135.6,2.42155239]
[1641819405158,4.16911242,135.67,135.6,2.42155239]
[1641819407360,7.3713696,135.66,135.6,2.42155239]
[1641819407559,11.3713696,135.66,135.61,2.4593443]
[1641819408160,4.16911242,135.65,135.62,2.42155239]
[1641819408760,4.16911242,135.65,135.6,2.42155239]
[1641819409660,4.16911242,135.65,135.57,4.26455239]
[1641819410060,4.16911242,135.67,135.58,2.42155239]
[1641819410862,4.16911242,135.67,135.59,2.46141281]
[1641819411062,11.36865375,135.71,135.61,4.0]
[1641819411265,11.36865375,135.71,135.6,4.0]
[1641819411761,11.36865375,135.71,135.62,4.0]
[1641819411964,11.36865375,135.71,135.63,4.0]
[1641819412162,7.36865375,135.71,135.65,4.0]
[1641819412362,4.16851987,135.7,135.65,4.0]
[1641819412562,3.20313871,135.7,135.65,4.0]
[1641819412764,3.20313871,135.7,135.64,2.83162294]
[1641819412963,7.36675384,135.74,135.65,5.842]
[1641819413164,7.36675384,135.74,135.64,5.89794065]
[1641819413465,7.36566862,135.76,135.65,1.842]
[1641819413864,4.16759653,135.73,135.65,4.96218328]
[1641819414365,4.16759653,135.75,135.66,3.12018328]
[1641819414567,4.16759653,135.75,135.67,1.842]
[1641819415167,7.3670252,135.74,135.68,3.12018328]
[1641819415867,4.16759653,135.73,135.68,3.12018328]
[1641819416271,4.16759653,135.73,135.64,7.12018328]
[1641819416472,4.16759653,135.73,135.64,13.01807026]
[1641819416671,4.16759653,135.73,135.65,3.12018328]
[1641819416874,4.16759653,135.73,135.65,4.96218328]
[1641819417073,4.16759653,135.73,135.66,3.12018328]
[1641819417271,4.16759653,135.73,135.67,1.842]
[1641819417471,4.16759653,135.75,135.67,11.73862781]
[1641819417672,4.16759653,135.75,135.68,4.0]
[1641819417870,4.16759653,135.75,135.69,4.0]
[1641819418270,4.16759653,135.75,135.7,3.12018328]
[1641819418471,4.16759653,135.75,135.74,4.0]
[1641819418872,4.16759653,135.75,135.7,10.85650563]
[1641819418873,15.44466953,135.83,135.7,10.85650563]
[1641819419071,7.36377025,135.8,135.71,4.0]
[1641819419272,7.36377025,135.8,135.74,3.12018328]
[1641819419472,7.36377025,135.8,135.72,1.841]
[1641819419774,7.36377025,135.8,135.71,1.841]
[1641819419973,15.44466953,135.85,135.73,5.89362025]
[1641819420176,7.36566862,135.76,135.66,1.841]
[1641819420373,4.0,135.78,135.65,15.44466953]
[1641819420374,7.36729657,135.74,135.65,15.44466953]
[1641819420574,7.36756797,135.73,135.65,15.44466953]
[1641819420974,3.42025919,135.73,135.65,15.44466953]
[1641819421175,3.42025919,135.73,135.66,7.73904992]
[1641819421374,29.46593002,135.77,135.66,7.73904992]
[1641819421774,3.42025919,135.76,135.66,7.73904992]
[1641819421976,7.36621119,135.75,135.66,7.73904992]
[1641819422579,3.42025919,135.74,135.66,7.73904992]
[1641819422776,3.42025919,135.74,135.66,5.89704992]
[1641819423879,3.42025919,135.74,135.64,1.842]
[1641819424081,3.42025919,135.74,135.69,4.0]
[1641819424278,3.42025919,135.74,135.67,1.842]
[1641819424681,10.78619908,135.76,135.66,7.73895825]
[1641819424885,10.78619908,135.76,135.66,5.89695825]
[1641819425090,3.42025919,135.75,135.66,5.89695825]
[1641819425283,3.42025919,135.75,135.67,1.842]
[1641819425483,3.42025919,135.75,135.66,7.73895825]
[1641819425885,3.42025919,135.75,135.66,5.89695825]
[1641819426086,3.42025919,135.75,135.67,1.842]
[1641819426787,7.36865375,135.71,135.64,1.842]
[1641819426988,7.36865375,135.71,135.63,75.90024147]
[1641819427188,3.42025919,135.76,135.63,75.90024147]
[1641819427388,3.42025919,135.76,135.64,1.842]
[1641819427389,3.42025919,135.7,135.64,1.842]
[1641819427788,7.36783938,135.72,135.64,1.842]
[1641819427987,7.36783938,135.72,135.63,7.07794147]
[1641819428189,3.42025919,135.71,135.63,7.07794147]
[1641819428587,3.42025919,135.7,135.63,7.07794147]
[1641819429186,7.36783938,135.72,135.63,11.07794147]
[1641819429387,7.36783938,135.72,135.63,7.07794147]
[1641819429587,3.13126495,135.71,135.68,4.0]
[1641819429787,29.47135753,135.75,135.66,25.8970187]
[1641819429788,7.3664825,135.75,135.66,25.8970187]
[1641819429989,7.3664825,135.75,135.67,1.842]
[1641819430189,7.36783938,135.72,135.62,7.74070241]
[1641819430789,7.36783938,135.72,135.63,15.44466953]
[1641819431389,2.50537859,135.71,135.64,5.89758316]
[1641819431588,2.50537859,135.71,135.64,7.73958316]
[1641819431888,2.50537859,135.71,135.64,1.842]
[1641819432491,2.50537859,135.71,135.65,4.0]
[1641819432689,2.50537859,135.71,135.63,2.45742415]
[1641819432888,2.50537859,135.71,135.64,1.842]
[1641819433091,2.50537859,135.71,135.62,1.842]
[1641819433289,7.36946829,135.69,135.61,15.44466953]
[1641819434090,2.50537859,135.68,135.61,2.46125668]
[1641819435790,2.50537859,135.68,135.64,4.0]
[1641819436390,2.50537859,135.71,135.65,4.16897796]
[1641819436590,7.36946829,135.69,135.65,4.16897796]
[1641819437192,7.37082627,135.67,135.65,7.796e-05]
[1641819437392,7.37082627,135.67,135.63,7.796e-05]
[1641819437795,7.37082627,135.67,135.59,19.44466953]
[1641819437994,7.37082627,135.67,135.6,1.843]
[1641819438396,7.36919676,135.7,135.6,5.843]
[1641819438595,7.36919676,135.7,135.6,1.843]
[1641819438796,11.36919676,135.7,135.61,4.16915141]
[1641819438995,2.60965936,135.69,135.61,6.63107409]
[1641819439596,2.60965936,135.69,135.62,4.16915141]
[1641819439999,2.60965936,135.69,135.62,8.16915141]
[1641819440203,2.60965936,135.69,135.63,1.842]
[1641819440401,2.60965936,135.71,135.64,5.89795352]
[1641819440601,2.60965936,135.71,135.65,1.842]
[1641819440802,2.60965936,135.71,135.65,6.01115141]
[1641819441201,2.60965936,135.71,135.66,4.16915141]
[1641819442002,19.44466953,135.78,135.67,2.46213751]
[1641819442202,4.0,135.77,135.67,4.30313751]
[1641819442400,4.0,135.73,135.67,2.46213751]
[1641819442803,4.0,135.74,135.67,2.46213751]
[1641819443001,4.0,135.74,135.62,1.842]
[1641819443200,7.36838227,135.72,135.62,1.842]
[1641819443702,3.18190695,135.71,135.63,4.16859158]
[1641819444100,3.18190695,135.71,135.63,6.63137179]
[1641819444502,3.18190695,135.71,135.64,5.89785817]
[1641819444702,3.18190695,135.71,135.65,1.842]
[1641819445002,3.18190695,135.71,135.66,4.16859158]
[1641819446205,3.18190695,135.71,135.66,14.06549537]
[1641819446404,7.36675384,135.75,135.67,1.842]
[1641819446604,7.36675384,135.75,135.67,4.30397989]
[1641819446905,7.36675384,135.75,135.68,5.89603432]
[1641819447307,3.18120915,135.74,135.68,10.0646259]
[1641819447707,3.18120915,135.74,135.69,4.16859158]
[1641819447907,3.18120915,135.74,135.71,4.0]
[1641819448107,3.18120915,135.74,135.69,6.00959158]
[1641819448308,3.18120915,135.78,135.69,6.00959158]
[1641819448709,3.18120915,135.77,135.7,4.16859158]
[1641819449110,3.18120915,135.76,135.7,4.16859158]
[1641819449510,3.18120915,135.75,135.7,4.16859158]
[1641819449710,3.18120915,135.75,135.73,4.0]
[1641819449910,15.44466953,135.82,135.75,5.89297476]
[1641819450111,15.44466953,135.82,135.76,1.841]
[1641819450312,15.44466953,135.82,135.76,11.73363679]
[1641819450513,15.44466953,135.82,135.77,4.0]
[1641819450914,15.44466953,135.82,135.76,7.73363679]
[1641819451120,2.71407695,135.85,135.76,7.73363679]
[1641819451313,2.71407695,135.85,135.76,5.89263679]
[1641819451514,6.71407695,135.85,135.77,4.16569791]
[1641819451812,2.02153868,135.84,135.77,4.16569791]
[1641819452111,8.73561563,135.84,135.77,6.00569791]
[1641819452311,8.73561563,135.84,135.77,4.16569791]
[1641819452516,11.36268591,135.83,135.77,4.16569791]
[1641819452915,4.0,135.81,135.74,4.16569791]
[1641819453117,7.36431254,135.8,135.74,4.16569791]
[1641819453515,9.38585122,135.8,135.71,4.16569791]
[1641819453716,2.02153868,135.79,135.75,4.16569791]
[1641819454317,2.02153868,135.79,135.7,4.16569791]
[1641819454717,2.02153868,135.79,135.69,1.84]
[1641819455120,2.02153868,135.79,135.7,4.16726639]
[1641819455519,11.36566862,135.77,135.7,4.16726639]
[1641819455923,2.02153868,135.76,135.7,4.16726639]
[1641819456420,2.02153868,135.76,135.67,4.16726639]
[1641819456821,7.36838227,135.72,135.67,4.16726639]
[1641819457222,2.02153868,135.71,135.67,4.16726639]
[1641819457722,2.02153868,135.7,135.65,4.16726639]
[1641819458223,2.02153868,135.69,135.65,4.16726639]
[1641819458622,2.02153868,135.68,135.65,4.16726639]
[1641819459123,2.02153868,135.68,135.65,8.16726639]
[1641819459322,22.81115203,135.76,135.65,8.16726639]
[1641819459523,7.3664825,135.76,135.66,2.45927012]
[1641819459722,1.70491302,135.75,135.66,8.46853651]
[1641819459922,1.70491302,135.75,135.66,6.62653651]
[1641819460122,1.70491302,135.75,135.67,4.16726639]
[1641819461625,1.70491302,135.75,135.68,7.73819895]
[1641819461824,1.70491302,135.75,135.68,7.73814656]
[1641819462027,1.70491302,135.75,135.68,10.19704]
[1641819462227,1.70491302,135.75,135.7,5.89516837]
[1641819462428,1.70491302,135.75,135.71,1.841]
[1641819462828,1.70491302,135.78,135.72,4.16726639]
[1641819464732,1.70491302,135.78,135.72,10.0616738]
[1641819464932,1.70491302,135.78,135.73,1.841]
[1641819465232,1.70491302,135.81,135.73,6.00826639]
[1641819465532,22.80654239,135.84,135.73,6.00826639]
[1641819466132,1.70420974,135.83,135.74,4.16726639]
[1641819466332,4.4161755,135.83,135.75,7.7341019]
[1641819466933,1.70420974,135.82,135.76,4.16726639]
[1641819467134,1.70420974,135.82,135.77,1.841]
[1641819467833,1.70420974,135.83,135.78,4.16726639]
[1641819468035,5.70420974,135.83,135.78,4.16726639]
[1641819468635,1.70420974,135.83,135.78,4.16726639]
[1641819468836,1.70420974,135.82,135.74,4.16726639]
[1641819469335,1.70420974,135.83,135.74,4.16726639]
[1641819469535,1.70420974,135.83,135.75,1.841]
[1641819469735,1.70420974,135.81,135.75,1.841]
[1641819469935,1.70420974,135.81,135.75,7.73377592]
[1641819470135,22.80654239,135.84,135.76,4.16726639]
[1641819470136,1.70420974,135.83,135.76,4.16726639]
[1641819470336,1.70420974,135.83,135.76,8.16726639]
[1641819470737,1.70420974,135.83,135.78,5.89180784]
[1641819470936,1.70420974,135.83,135.79,1.84]
[1641819471536,1.70420974,135.85,135.8,4.16726639]
[1641819472537,1.70420974,135.85,135.81,7.73049584]
[1641819473038,1.70420974,135.88,135.82,4.16726639]
[1641819473540,1.70420974,135.88,135.82,6.00726639]
[1641819473939,1.70420974,135.89,135.83,4.0]
[1641819474139,15.44466953,135.9,135.84,5.84]
[1641819474344,15.44466953,135.9,135.86,9.88803973]
[1641819474539,15.44466953,135.9,135.87,1.839]
[1641819475238,1.19058527,135.89,135.87,1.839]
[1641819475440,1.19058527,135.89,135.84,1.839]
[1641819475640,1.19058527,135.89,135.83,9.88948083]
[1641819475840,1.19058527,135.89,135.84,1.84]
[1641819476043,1.19058527,135.89,135.85,20.0]
[1641819476242,1.19058527,135.92,135.87,4.0]
[1641819476540,10.67067572,135.95,135.86,6.00273806]
[1641819476541,1.19058527,135.88,135.86,6.00273806]
[1641819476741,15.44466953,135.94,135.88,5.88733827]
[1641819477041,15.44466953,135.94,135.88,7.72633827]
[1641819477441,4.0,135.94,135.86,1.839]
[1641819477641,4.0,135.95,135.84,73.66188655]
[1641819477941,1.00376804,135.93,135.87,4.16338402]
[1641819478342,18.15052195,135.94,135.86,4.16338402]
[1641819478941,1.00376804,135.93,135.86,4.16338402]
[1641819479944,1.00376804,135.93,135.85,4.16338402]
[1641819480348,5.00376804,135.93,135.85,4.16338402]
[1641819480747,1.00376804,135.92,135.85,4.16338402]
[1641819480947,4.0,135.91,135.85,4.16338402]
[1641819481149,4.0,135.86,135.85,4.16338402]
[1641819481351,4.0,135.86,135.78,1.84]
[1641819481550,4.0,135.85,135.76,1.84]
[1641819481747,4.0,135.85,135.75,9.20078908]
[1641819482147,4.0,135.83,135.75,9.20078908]
[1641819482349,4.0,135.82,135.74,5.89335551]
[1641819482549,4.0,135.83,135.74,5.89335551]
[1641819482748,2.08398981,135.81,135.75,4.16594515]
[1641819483349,6.08398981,135.83,135.75,4.16594515]
[1641819483553,4.0,135.82,135.75,4.16594515]
[1641819483752,2.08398981,135.8,135.74,4.16594515]
[1641819484155,2.08398981,135.81,135.73,4.16594515]
[1641819484752,2.08398981,135.81,135.74,1.841]
[1641819485153,6.08398981,135.83,135.74,1.841]
[1641819485357,6.08398981,135.83,135.73,6.00694515]
[1641819485553,2.08398981,135.82,135.75,4.16594515]
[1641819485755,2.08398981,135.82,135.75,8.16594515]
[1641819485955,2.08398981,135.82,135.76,1.841]
[1641819486156,2.08398981,135.83,135.76,1.841]
[1641819486357,2.08398981,135.81,135.77,4.16594515]
[1641819486756,6.08398981,135.86,135.77,4.16594515]
[1641819487357,2.08398981,135.85,135.77,4.16594515]
[1641819487656,4.0,135.84,135.77,4.16594515]
[1641819487955,6.08398981,135.85,135.77,4.16594515]
[1641819488156,2.08398981,135.83,135.77,4.16594515]
[1641819488557,6.08398981,135.83,135.77,4.16594515]
[1641819488756,6.08398981,135.83,135.76,4.16594515]
[1641819488959,4.0,135.82,135.76,4.16594515]
[1641819489158,6.08398981,135.82,135.78,4.16594515]
[1641819489359,4.0,135.79,135.78,4.16594515]
[1641819489559,4.0,135.79,135.69,82.69737862]
[1641819489760,4.0,135.78,135.69,80.85637862]
[1641819489960,4.0,135.78,135.69,14.43847862]
[1641819490160,4.0,135.77,135.71,4.16733798]
[1641819490761,2.08398981,135.76,135.71,4.16733798]
[1641819490962,6.08398981,135.76,135.71,4.16733798]
[1641819491270,2.08398981,135.76,135.7,4.16733798]
[1641819491563,2.08398981,135.75,135.72,4.16733798]
[1641819492061,4.0,135.79,135.69,11.73679018]
[1641819492062,6.08398981,135.79,135.7,4.16733798]
[1641819492561,6.08398981,135.78,135.7,4.16733798]
[1641819493363,2.08398981,135.77,135.7,4.16733798]
[1641819493763,2.08398981,135.78,135.7,4.16733798]
[1641819494465,2.08398981,135.78,135.71,1.841]
[1641819494665,2.08398981,135.79,135.71,1.841]
[1641819494866,2.08398981,135.79,135.71,7.73551108]
[1641819495065,2.08398981,135.79,135.71,11.73551108]
[1641819495270,2.08398981,135.81,135.73,13.25551607]
[1641819495466,2.08398981,135.81,135.75,7.36078908]
[1641819495666,6.08398981,135.83,135.74,6.00833798]
[1641819495866,2.08398981,135.83,135.74,4.16733798]
[1641819496066,2.08398981,135.8,135.76,4.16733798]
[1641819496668,6.08398981,135.83,135.74,4.16733798]
[1641819496867,4.0,135.79,135.74,4.16733798]
[1641819497067,2.08398981,135.83,135.74,4.16733798]
[1641819497068,4.0,135.78,135.74,4.16733798]
[1641819497267,11.36593989,135.81,135.74,4.16733798]
[1641819497468,2.08398981,135.78,135.74,4.16733798]
[1641819497666,6.08398981,135.78,135.74,4.16733798]
[1641819498070,2.08398981,135.78,135.74,4.16733798]
[1641819498369,2.08398981,135.77,135.7,10.06261216]
[1641819498568,2.08398981,135.77,135.71,1.841]
[1641819498769,2.08398981,135.79,135.71,6.00833798]
[1641819498972,2.08398981,135.79,135.71,4.16733798]
[1641819499272,2.08398981,135.79,135.72,4.16733798]
[1641819499670,2.08398981,135.79,135.71,8.16733798]
[1641819499871,2.08398981,135.79,135.71,6.00833798]
[1641819500071,2.08398981,135.8,135.72,4.16733798]
[1641819500276,2.08398981,135.8,135.74,7.36160188]
[1641819500471,2.08398981,135.8,135.75,1.841]
[1641819500672,2.08398981,135.82,135.75,1.841]
[1641819501073,2.08398981,135.79,135.76,4.16733798]
[1641819501272,2.08398981,135.79,135.78,4.0]
[1641819501472,15.44466953,135.85,135.79,5.88732255]
[1641819501675,15.44466953,135.87,135.8,1.84]
[1641819502172,15.44466953,135.87,135.79,1.84]
[1641819502772,1.45907675,135.86,135.8,4.16509741]
[1641819503472,1.45907675,135.88,135.8,4.16509741]
[1641819503875,16.90374628,135.88,135.8,4.16509741]
[1641819504073,16.90374628,135.88,135.79,4.16509741]